fUSD/lending_fUSD_20240225
["ID","MTS","AMOUNT","RATE_DAILY","PERIOD"]
[315123900,1708863048332,-512.49146805,0.00026376,2]
[315123901,1708863048341,-844.4,0.00026376,2]
[315123902,1708863048350,-500.0,0.00026376,2]
[315123903,1708863048359,-500.0,0.00026376,2]
[315123904,1708863048369,-542.87903009,0.00026376,2]
[315123905,1708863048379,-521.33234313,0.00026376,2]
[315123906,1708863048388,-500.0,0.00026376,2]
[315123907,1708863048397,-516.98,0.00026376,2]
[315123908,1708863048406,-500.0,0.00026376,2]
[315123909,1708863048415,-506.68115448,0.00026376,2]
[315123910,1708863048425,-760.95,0.00026376,2]
[315123911,1708863048434,-500.0,0.00026376,2]
[315123912,1708863048443,-500.0,0.00026376,2]
[315123913,1708863048452,-500.0,0.00026376,2]
[315123914,1708863048461,-878.31,0.00026376,2]
[315123915,1708863048471,-500.0,0.00026376,2]
[315123916,1708863048480,-838.47,0.00026376,2]
[315123917,1708863048490,-2091.13,0.00026376,2]
[315123918,1708863048499,-500.0,0.00026376,2]
[315123919,1708863048508,-515.04524164,0.00026376,2]
[315123920,1708863048517,-500.0,0.00026376,2]
[315123921,1708863048526,-607.25,0.00026376,2]
[315123922,1708863048536,-500.0,0.00026376,2]
[315123923,1708863048545,-538.54,0.00026376,2]
[315123924,1708863048554,-500.0,0.00026376,2]
[315123925,1708863048562,-500.0,0.00026376,2]
[315123926,1708863048571,-609.03053668,0.00026376,2]
[315123927,1708863048580,-500.0,0.00026376,2]
[315123928,1708863048589,-909.19,0.00026376,2]
[315123929,1708863048599,-514.52415494,0.00026376,2]
[315123930,1708863048609,-4761.82,0.00026376,2]
[315123931,1708863048618,-500.0,0.00026376,2]
[315123932,1708863048627,-500.0,0.00026376,2]
[315123933,1708863048636,-773.37,0.00026376,2]
[315123934,1708863048645,-500.0,0.00026376,2]
[315123935,1708863048654,-556.81932971,0.00026376,2]
[315123936,1708863048663,-514.48251568,0.00026376,2]
[315123937,1708863048672,-500.0,0.00026376,2]
[315123938,1708863048681,-1845.66,0.00026376,2]
[315123939,1708863048690,-523.14870144,0.00026376,2]
[315123940,1708863048699,-500.0,0.00026376,2]
[315123941,1708863048709,-345.77194558,0.00026376,2]
[315123942,1708863048718,-1506.91,0.00026376,2]
[315123943,1708863048728,-525.0866695,0.00026376,2]
[315123944,1708863048737,-500.0,0.00026376,2]
[315123945,1708863048746,-507.76048727,0.00026376,2]
[315123946,1708863048756,-500.0,0.00026376,2]
[315123947,1708863048765,-500.0,0.00026376,2]
[315123948,1708863048774,-2449.81,0.00026376,2]
[315123949,1708863048783,-516.88222035,0.00026376,2]
[315123950,1708863048793,-710.92,0.00026376,2]
[315123951,1708863048802,-500.0,0.00026376,2]
[315123952,1708863048811,-500.0,0.00026376,2]
[315123953,1708863048820,-500.0,0.00026376,2]
[315123954,1708863048829,-500.0,0.00026376,2]
[315123955,1708863048839,-500.0,0.00026376,2]
[315123956,1708863048848,-500.0,0.00026376,2]
[315123957,1708863048857,-500.0,0.00026376,2]
[315123958,1708863048866,-1053.24,0.00026376,2]
[315123959,1708863048876,-690.7,0.00026376,2]
[315123960,1708863048885,-512.14464473,0.00026376,2]
[315123961,1708863048894,-500.0,0.00026376,2]
[315123962,1708863048903,-510.83345396,0.00026376,2]
[315123963,1708863048912,-500.0,0.00026376,2]
[315123964,1708863048921,-518.51460298,0.00026376,2]
[315123965,1708863048930,-500.0,0.00026376,2]
[315123966,1708863048939,-500.0,0.00026376,2]
[315123967,1708863048949,-500.0,0.00026376,2]
[315123968,1708863048957,-500.0,0.00026376,2]
[315123969,1708863048967,-430.53158055,0.00026376,2]
[315123970,1708863048976,-1178.89,0.00026376,2]
[315123971,1708863048986,-599.58,0.00026376,2]
[315123972,1708863048995,-500.0,0.00026376,2]
[315123973,1708863049004,-500.0,0.00026376,2]
[315123974,1708863049015,-531.78,0.00026376,2]
[315123975,1708863049024,-500.0,0.00026376,2]
[315123976,1708863049033,-839.66,0.00026376,2]
[315123977,1708863049042,-693.79,0.00026376,2]
[315123978,1708863049051,-500.0,0.00026376,2]
[315123979,1708863049061,-503.37,0.00026376,2]
[315123980,1708863049071,-500.0,0.00026376,2]
[315123981,1708863049081,-1789.19,0.00026376,2]
[315123982,1708863049090,-513.23314732,0.00026376,2]
[315123983,1708863049100,-902.17,0.00026376,2]
[315123984,1708863049109,-1022.16,0.00026376,2]
[315123985,1708863049119,-700.12,0.00026376,2]
[315123986,1708863049128,-500.0,0.00026376,2]
[315123987,1708863049137,-535.58,0.00026376,2]
[315123988,1708863049146,-500.0,0.00026376,2]
[315123989,1708863049156,-626.74,0.00026376,2]
[315123990,1708863049165,-849.03,0.00026376,2]
[315123991,1708863049174,-506.5749704,0.00026376,2]
[315123992,1708863049184,-500.0,0.00026376,2]
[315123993,1708863049193,-500.0,0.00026376,2]
[315123994,1708863049203,-500.0,0.00026376,2]
[315123995,1708863049212,-500.0,0.00026376,2]
[315123996,1708863049222,-530.71342655,0.00026376,2]
[315123997,1708863049231,-702.32,0.00026376,2]
[315123998,1708863049241,-694.16,0.00026376,2]
[315123999,1708863049250,-3830.94,0.00026376,2]
[315124000,1708863049259,-500.0,0.00026376,2]
[315124001,1708863049268,-500.0,0.00026376,2]
[315124002,1708863049277,-500.0,0.00026376,2]
[315124003,1708863049286,-518.7,0.00026376,2]
[315124004,1708863049297,-500.0,0.00026376,2]
[315124005,1708863049307,-500.0,0.00026376,2]
[315124006,1708863049317,-519.52216922,0.00026376,2]
[315124007,1708863049326,-500.0,0.00026376,2]
[315124008,1708863049336,-500.0,0.00026376,2]
[315124009,1708863049345,-812.19,0.00026376,2]
[315124010,1708863049355,-520.02279599,0.00026376,2]
[315124011,1708863049365,-861.45,0.00026376,2]
[315124012,1708863049374,-500.0,0.00026376,2]
[315124013,1708863049383,-500.0,0.00026376,2]
[315124014,1708863049393,-558.16,0.00026376,2]
[315124015,1708863049402,-1799.85,0.00026376,2]
[315124016,1708863049411,-958.31,0.00026376,2]
[315124017,1708863049420,-431.94325064,0.00026376,2]
[315124018,1708863049430,-500.0,0.00026376,2]
[315124019,1708863049439,-1395.35,0.00026376,2]
[315124020,1708863049448,-500.0,0.00026376,2]
[315124021,1708863049457,-500.0,0.00026376,2]
[315124022,1708863049466,-527.39192625,0.00026376,2]
[315124023,1708863049475,-534.27324441,0.00026376,2]
[315124024,1708863049485,-500.0,0.00026376,2]
[315124025,1708863049494,-1807.85,0.00026376,2]
[315124026,1708863049503,-500.0,0.00026376,2]
[315124027,1708863049513,-1152.68,0.00026376,2]
[315124028,1708863049522,-500.0,0.00026376,2]
[315124029,1708863049531,-553.51,0.00026376,2]
[315124030,1708863049540,-500.0,0.00026376,2]
[315124031,1708863049549,-599.47,0.00026376,2]
[315124032,1708863049559,-3595.23,0.00026376,2]
[315124033,1708863049568,-500.0,0.00026376,2]
[315124034,1708863049577,-500.0,0.00026376,2]
[315124035,1708863049586,-163144.69090798,0.00026377,2]
[315124036,1708863050084,-336.82799995,0.00026377,2]
[315124037,1708863050107,-511.74477419,0.00026377,2]
[315124038,1708863050609,-2414.16413814,0.00026377,2]
[315124039,1708863050743,-893.00253833,0.00026377,2]
[315124040,1708863050760,-476.91,0.00026377,2]
[315124041,1708863050791,-6842.29411471,0.00026377,2]
[315124042,1708863050803,-768.06384375,0.00026377,2]
[315124043,1708863050814,-3430.07541432,0.00026377,2]
[315124044,1708863050824,-3553.49443603,0.00026377,2]
[315124045,1708863050835,-407.13101451,0.00026377,2]
[315124046,1708863050850,-288.95761252,0.00026377,2]
[315124047,1708863121615,239.06,0.00023472,2]
[315124048,1708863273848,207.0,0.000232,2]
[315124049,1708863589431,227.1,0.00022739,2]
[315124050,1708863661820,158.0,0.00023353,2]
[315124051,1708863685417,324504.95639717,0.00024,2]
[315124052,1708863716409,159.0,0.00023653,2]
[315124053,1708863765571,351104.77820212,0.00024,2]
[315124054,1708863808199,177.83,0.00024,2]
[315124055,1708863810922,200.0,0.0002388,2]
[315124056,1708863836154,112080.9082349,0.00024,2]
[315124057,1708863843042,150.0,0.00024,2]
[315124058,1708863845565,2000.0,0.0002396,2]
[315124059,1708863854701,151.0,0.00025,7]
[315124060,1708863860203,151.0,0.00025,7]
[315124061,1708863860315,331.15,0.00023927,2]
[315124062,1708863860581,151.0,0.00025,7]
[315124063,1708863869256,155.0,0.00024,2]
[315124064,1708863873250,151.0,0.00025,7]
[315124065,1708863876650,200.0,0.00023931,2]
[315124066,1708863882160,151.0,0.00025,7]
[315124067,1708863896714,171.352558,0.00025,7]
[315124068,1708863899818,171.352558,0.00025,7]
[315124069,1708863911389,151.57423126,0.000239,2]
[315124070,1708863912423,151.0,0.00025,7]
[315124071,1708863929551,151.0,0.00024999,7]
[315124072,1708863930450,153.481308,0.00025,7]
[315124073,1708863931442,250.0,0.00023904,2]
[315124074,1708863937034,151.0,0.00024999,7]
[315124075,1708863937484,151.0,0.00025,7]
[315124076,1708863938930,151.0,0.00024999,7]
[315124077,1708863939255,151.0,0.00025,7]
[315124078,1708863940378,151.0,0.00024999,7]
[315124079,1708863940687,151.0,0.00025,7]
[315124080,1708863945522,23890.0,0.000239,2]
[315124081,1708863945638,151.0,0.00024999,7]
[315124082,1708863945911,151.0,0.00025,7]
[315124084,1708863972795,500.0,0.00023913,2]
[315124085,1708863977761,152.913644,0.00024999,7]
[315124086,1708863984068,151.0,0.00024999,7]
[315124087,1708863985900,500.0,0.00023913,2]
[315124088,1708863996257,151.0,0.00024999,7]
[315124089,1708863997537,151.0,0.00025,7]
[315124090,1708863998911,151.0,0.00024999,7]
[315124091,1708863999445,151.0,0.00025,7]
[315124092,1708864018974,150.0,0.00023907,2]
[315124093,1708864039461,215.74,0.00021886,2]
[315124094,1708864045749,155.0,0.00023907,2]
[315124095,1708864049602,151.0,0.00024999,7]
[315124096,1708864049900,151.0,0.00024999,7]
[315124097,1708864050422,151.0,0.00025,7]
[315124098,1708864051644,150.0,0.00023776,2]
[315124099,1708864054110,176.382141,0.00024999,7]
[315124100,1708864060073,155.0,0.00023907,2]
[315124101,1708864064353,151.0,0.00024999,7]
[315124102,1708864064705,151.0,0.00024999,7]
[315124103,1708864065062,290.958997,0.00025,7]
[315124104,1708864079604,500.0,0.00023769,2]
[315124105,1708864081762,155.0,0.00023907,2]
[315124106,1708864088985,151.0,0.00024999,7]
[315124107,1708864089559,151.0,0.00024999,7]
[315124108,1708864089746,151.0,0.00025,7]
[315124109,1708864093450,151.0,0.00024999,7]
[315124110,1708864094897,151.0,0.00024999,7]
[315124111,1708864098638,151.0,0.00024999,7]
[315124112,1708864100062,164.994147,0.00024999,7]
[315124113,1708864102663,151.0,0.00024999,7]
[315124114,1708864103670,151.0,0.00024999,7]
[315124115,1708864104273,151.0,0.00025,7]
[315124116,1708864109546,151.0,0.00024999,7]
[315124117,1708864109836,151.0,0.00024999,7]
[315124118,1708864110294,151.0,0.00025,7]
[315124119,1708864116096,151.0,0.00024999,7]
[315124120,1708864116378,151.0,0.00024999,7]
[315124121,1708864116410,151.0,0.00024999,7]
[315124122,1708864116738,151.0,0.00024999,7]
[315124123,1708864118595,151.0,0.00024999,7]
[315124124,1708864118992,152.944027,0.00024999,7]
[315124125,1708864128872,151.0,0.00024999,7]
[315124126,1708864129146,151.0,0.00024999,7]
[315124127,1708864129674,151.0,0.00024999,7]
[315124128,1708864129786,189.60475,0.00024999,7]
[315124129,1708864133157,157.152312,0.00024999,7]
[315124130,1708864136569,151.0,0.00024999,7]
[315124131,1708864137480,151.0,0.00024999,7]
[315124132,1708864138225,151.0,0.00024999,7]
[315124133,1708864138267,151.0,0.00024999,7]
[315124134,1708864142848,151.0,0.00024999,7]
[315124135,1708864143649,151.0,0.00024999,7]
[315124136,1708864144451,151.0,0.00025,7]
[315124137,1708864145447,151.0,0.00024999,7]
[315124138,1708864145770,169.248,0.00024999,7]
[315124139,1708864148050,151.0,0.00024999,7]
[315124140,1708864148330,151.0,0.00024999,7]
[315124141,1708864148598,151.0,0.00024999,7]
[315124142,1708864148906,151.0,0.00024999,7]
[315124143,1708864149223,251.602234,0.00025,7]
[315124144,1708864150508,155.36092,0.00024999,7]
[315124145,1708864154338,153.828288,0.000249,7]
[315124146,1708864156049,157.532721,0.00024999,7]
[315124147,1708864170936,627.41,0.00023592,2]
[315124148,1708864170978,151.0,0.000249,7]
[315124149,1708864171386,151.0,0.00024999,7]
[315124150,1708864171988,151.0,0.00024999,7]
[315124151,1708864172570,151.0,0.00024999,7]
[315124152,1708864172910,151.0,0.00024999,7]
[315124153,1708864173224,151.0,0.00024999,7]
[315124154,1708864174859,151.0,0.000249,7]
[315124155,1708864176224,151.0,0.00024999,7]
[315124156,1708864181301,151.0,0.000249,7]
[315124157,1708864181811,151.0,0.000249,7]
[315124158,1708864182178,156.058769,0.00024999,7]
[315124159,1708864182623,151.0,0.00024999,7]
[315124160,1708864184032,151.0,0.00024999,7]
[315124161,1708864184273,154.217303,0.000249,7]
[315124162,1708864184643,154.217303,0.00024999,7]
[315124163,1708864184686,151.0,0.00024999,7]
[315124164,1708864184963,154.217303,0.00024999,7]
[315124165,1708864185036,151.0,0.00024999,7]
[315124166,1708864185316,154.217303,0.00024999,7]
[315124167,1708864185384,151.0,0.00024999,7]
[315124168,1708864185667,154.217303,0.00024999,7]
[315124169,1708864185745,151.0,0.00025,7]
[315124170,1708864185995,154.217303,0.00024999,7]
[315124171,1708864187002,154.217303,0.00025,7]
[315124172,1708864187669,154.217303,0.000249,7]
[315124173,1708864187965,154.217303,0.00024999,7]
[315124174,1708864188119,200.56,0.00023592,2]
[315124175,1708864188288,154.217303,0.00024999,7]
[315124176,1708864188607,154.217303,0.00024999,7]
[315124177,1708864189818,154.217303,0.00024999,7]
[315124178,1708864190110,154.217303,0.00024999,7]
[315124179,1708864191551,154.217303,0.00025,7]
[315124180,1708864192173,151.0,0.000249,7]
[315124181,1708864193145,151.0,0.00024999,7]
[315124182,1708864225747,151.0,0.00024899,7]
[315124183,1708864226259,151.0,0.000249,7]
[315124184,1708864226588,232.797688,0.00024999,7]
[315124185,1708864228236,151.0,0.00024899,7]
[315124189,1708864231739,1000.0,0.00023543,2]
[315124190,1708864231752,-213.52359217,0.00024015,2]
[315124191,1708864231761,-186.47640783,0.00024016,2]
[315124192,1708864231888,-1287.25840715,0.00024016,2]
[315124193,1708864231944,-1370.84726331,0.00024016,2]
[315124600,1708864237817,-146.03422171,0.00024016,2]
[315124601,1708864237826,-308.46577829,0.00024019,2]
[315124602,1708864237872,-307.35438592,0.00024019,2]
[315124603,1708864237881,-160.98921553,0.00024022,2]
[315124604,1708864237899,-155.08,0.00024092,2]
[315124605,1708864237911,-1392.72557562,0.00024116,2]
[315124606,1708864237920,-860.45573741,0.00024117,2]
[315124607,1708864237930,-160.98921551,0.0002412,2]
[315124609,1708864237939,-155.12,0.00024122,2]
[315124611,1708864237948,-215.74,0.0002415,2]
[315124613,1708864237957,-155.01,0.00024163,2]
[315124614,1708864237966,-155.0,0.00024214,2]
[315124615,1708864237975,-160.98921551,0.00024217,2]
[315124616,1708864237984,-155.08,0.00024249,2]
[315124618,1708864237994,-160.98921551,0.00024315,2]
[315124620,1708864238003,-229.12,0.00024384,2]
[315124622,1708864238012,-499.99,0.00024384,2]
[315124624,1708864238022,-155.08,0.00024406,2]
[315124625,1708864238031,-160.98921551,0.00024413,2]
[315124627,1708864238041,-160.98921551,0.0002451,2]
[315124629,1708864238050,-150.0,0.00024547,2]
[315124631,1708864238060,-300.0,0.00024547,2]
[315124632,1708864238069,-354.18,0.00024548,2]
[315124633,1708864238078,-150.0,0.00024548,2]
[315124634,1708864238087,-155.08,0.00024563,2]
[315124635,1708864238096,-160.98921551,0.00024608,2]
[315124636,1708864238106,-250.0,0.00024658,2]
[315124637,1708864238115,-777.57417191,0.000247,2]
[315124638,1708864238125,-160.98921551,0.00024705,2]
[315124639,1708864238135,-155.08,0.0002472,2]
[315124640,1708864238144,-159.0,0.00024749,2]
[315124641,1708864238153,-4994.97,0.00024799,2]
[315124642,1708864238163,-1332.39,0.00024799,2]
[315124643,1708864238172,-500.0,0.00024799,2]
[315124644,1708864238181,-500.0,0.00024799,2]
[315124645,1708864238190,-500.0,0.00024799,2]
[315124646,1708864238199,-500.0,0.00024799,2]
[315124647,1708864238209,-5081.27,0.00024799,2]
[315124648,1708864238218,-725.68,0.00024799,2]
[315124649,1708864238227,-769.69,0.00024799,2]
[315124650,1708864238237,-704.28,0.00024799,2]
[315124651,1708864238247,-500.0,0.00024799,2]
[315124652,1708864238256,-478.71068578,0.00024799,2]
[315124653,1708864238266,-1451.48,0.00024799,2]
[315124654,1708864238276,-664.15,0.00024799,2]
[315124655,1708864238285,-500.0,0.00024799,2]
[315124656,1708864238295,-500.0,0.00024799,2]
[315124657,1708864238304,-500.0,0.00024799,2]
[315124658,1708864238313,-500.0,0.00024799,2]
[315124659,1708864238322,-500.0,0.00024799,2]
[315124660,1708864238336,-506.75,0.00024799,2]
[315124661,1708864238346,-500.0,0.00024799,2]
[315124662,1708864238355,-569.49,0.00024799,2]
[315124663,1708864238364,-500.0,0.00024799,2]
[315124664,1708864238374,-547.6,0.00024799,2]
[315124665,1708864238383,-500.0,0.00024799,2]
[315124666,1708864238392,-500.0,0.00024799,2]
[315124667,1708864238402,-500.0,0.00024799,2]
[315124668,1708864238411,-500.0,0.00024799,2]
[315124669,1708864238420,-515.12919729,0.00024799,2]
[315124670,1708864238430,-183.55964388,0.000248,2]
[315124671,1708864238439,-34911.2358447,0.000248,2]
[315124674,1708864240409,-439.0039486,0.00024799,2]
[315124675,1708864241164,-1771.3160514,0.00024799,2]
[315124676,1708864241174,-421.7514777,0.00024799,2]
[315124677,1708864241186,-78.2485223,0.00024799,2]
[315124678,1708864241196,-509.6,0.00024799,2]
[315124679,1708864241206,-1452.1514777,0.000248,2]
[315124680,1708864241217,-1214.33907265,0.000248,2]
[315124681,1708864241238,-409.104576,0.000248,2]
[315124682,1708864241250,-1092.27862809,0.000248,2]
[315124683,1708864241262,-2595.88351195,0.000248,2]
[315124713,1708864243026,-500.0,0.00024799,2]
[315124714,1708864243035,-108325.00688891,0.000248,2]
[315124715,1708864243045,-107726.89269631,0.000248,2]
[315124716,1708864243054,-539.63335447,0.000248,2]
[315124717,1708864243064,-160.98921551,0.00024803,2]
[315124718,1708864243074,-498.4563356,0.00024803,2]
[315124719,1708864243083,-3374.88566667,0.00024803,2]
[315124721,1708864243093,-223.92483311,0.00024803,2]
[315124722,1708864243103,-155.08,0.00024877,2]
[315124723,1708864243113,-500.0,0.00024898,2]
[315124724,1708864243122,-500.0,0.00024898,2]
[315124725,1708864243132,-500.0,0.00024898,2]
[315124726,1708864243141,-506.75,0.00024898,2]
[315124727,1708864243151,-500.0,0.00024898,2]
[315124728,1708864243160,-500.0,0.00024898,2]
[315124729,1708864243169,-500.0,0.00024898,2]
[315124730,1708864243179,-500.0,0.00024898,2]
[315124731,1708864243188,-500.0,0.00024898,2]
[315124732,1708864243198,-167.69049477,0.00024898,2]
[315124733,1708864243207,-500.0,0.00024899,2]
[315124734,1708864243217,-500.0,0.00024899,2]
[315124735,1708864243227,-500.0,0.00024899,2]
[315124736,1708864243236,-500.0,0.00024899,2]
[315124737,1708864243246,-500.0,0.00024899,2]
[315124738,1708864243255,-500.0,0.00024899,2]
[315124739,1708864243265,-500.0,0.00024899,2]
[315124740,1708864243274,-500.0,0.00024899,2]
[315124741,1708864243284,-500.0,0.00024899,2]
[315124742,1708864243294,-500.0,0.00024899,2]
[315124743,1708864243304,-4994.97,0.00024899,2]
[315124744,1708864243314,-4994.97,0.00024899,2]
[315124745,1708864243323,-4994.97,0.00024899,2]
[315124746,1708864243333,-4994.97,0.00024899,2]
[315124747,1708864243342,-553.62,0.00024899,2]
[315124748,1708864243351,-4994.97,0.00024899,2]
[315124749,1708864243360,-553.62,0.00024899,2]
[315124750,1708864243370,-4994.97,0.00024899,2]
[315124751,1708864243379,-553.62,0.00024899,2]
[315124752,1708864243388,-4994.97,0.00024899,2]
[315124753,1708864243398,-553.62,0.00024899,2]
[315124754,1708864243407,-553.62,0.00024899,2]
[315124755,1708864243416,-4994.97,0.00024899,2]
[315124756,1708864243426,-553.62,0.00024899,2]
[315124757,1708864243435,-4994.97,0.00024899,2]
[315124758,1708864243445,-553.62,0.00024899,2]
[315124759,1708864243454,-553.62,0.00024899,2]
[315124760,1708864243463,-553.62,0.00024899,2]
[315124761,1708864243472,-553.62,0.00024899,2]
[315124762,1708864243481,-559.19,0.00024899,2]
[315124763,1708864243490,-559.19,0.00024899,2]
[315124764,1708864243499,-559.19,0.00024899,2]
[315124765,1708864243508,-559.19,0.00024899,2]
[315124766,1708864243517,-559.19,0.00024899,2]
[315124767,1708864243526,-559.19,0.00024899,2]
[315124768,1708864243536,-559.19,0.00024899,2]
[315124769,1708864243545,-559.19,0.00024899,2]
[315124770,1708864243554,-559.19,0.00024899,2]
[315124771,1708864243563,-559.19,0.00024899,2]
[315124772,1708864243572,-1332.39,0.00024899,2]
[315124773,1708864243581,-1332.39,0.00024899,2]
[315124774,1708864243590,-1332.39,0.00024899,2]
[315124775,1708864243598,-1332.39,0.00024899,2]
[315124776,1708864243607,-1332.39,0.00024899,2]
[315124777,1708864243616,-1332.39,0.00024899,2]
[315124778,1708864243626,-1332.39,0.00024899,2]
[315124779,1708864243635,-1332.39,0.00024899,2]
[315124780,1708864243645,-1332.39,0.00024899,2]
[315124781,1708864243655,-557.23,0.00024899,2]
[315124782,1708864243664,-557.23,0.00024899,2]
[315124783,1708864243676,-557.23,0.00024899,2]
[315124784,1708864243685,-557.23,0.00024899,2]
[315124785,1708864243693,-557.23,0.00024899,2]
[315124786,1708864243703,-557.23,0.00024899,2]
[315124787,1708864243713,-557.23,0.00024899,2]
[315124788,1708864243722,-557.23,0.00024899,2]
[315124789,1708864243731,-557.23,0.00024899,2]
[315124790,1708864243740,-557.23,0.00024899,2]
[315124791,1708864243750,-500.0,0.00024899,2]
[315124792,1708864243760,-500.0,0.00024899,2]
[315124793,1708864243769,-500.0,0.00024899,2]
[315124794,1708864243778,-500.0,0.00024899,2]
[315124795,1708864243786,-500.0,0.00024899,2]
[315124796,1708864243795,-500.0,0.00024899,2]
[315124797,1708864243804,-500.0,0.00024899,2]
[315124798,1708864243814,-500.0,0.00024899,2]
[315124799,1708864243823,-500.0,0.00024899,2]
[315124800,1708864243832,-500.0,0.00024899,2]
[315124801,1708864243841,-500.0,0.00024899,2]
[315124802,1708864243850,-500.0,0.00024899,2]
[315124803,1708864243860,-500.0,0.00024899,2]
[315124804,1708864243869,-500.0,0.00024899,2]
[315124805,1708864243878,-500.0,0.00024899,2]
[315124806,1708864243888,-500.0,0.00024899,2]
[315124807,1708864243897,-500.0,0.00024899,2]
[315124808,1708864243907,-500.0,0.00024899,2]
[315124809,1708864243916,-500.0,0.00024899,2]
[315124810,1708864243925,-500.0,0.00024899,2]
[315124811,1708864243934,-500.0,0.00024899,2]
[315124812,1708864243943,-308.36187095,0.00024899,2]
[315124813,1708864243952,-938.25,0.00024899,2]
[315124814,1708864243962,-938.25,0.00024899,2]
[315124815,1708864243971,-938.25,0.00024899,2]
[315124816,1708864243980,-938.25,0.00024899,2]
[315124817,1708864243990,-938.25,0.00024899,2]
[315124818,1708864243999,-938.25,0.00024899,2]
[315124819,1708864244008,-938.25,0.00024899,2]
[315124820,1708864244018,-938.25,0.00024899,2]
[315124821,1708864244027,-938.25,0.00024899,2]
[315124822,1708864244037,-938.25,0.00024899,2]
[315124823,1708864244046,-500.0,0.00024899,2]
[315124824,1708864244055,-500.0,0.00024899,2]
[315124825,1708864244064,-500.0,0.00024899,2]
[315124826,1708864244073,-500.0,0.00024899,2]
[315124827,1708864244083,-500.0,0.00024899,2]
[315124828,1708864244092,-500.0,0.00024899,2]
[315124829,1708864244102,-500.0,0.00024899,2]
[315124830,1708864244111,-500.0,0.00024899,2]
[315124831,1708864244120,-500.0,0.00024899,2]
[315124832,1708864244129,-876.89,0.00024899,2]
[315124833,1708864244139,-876.89,0.00024899,2]
[315124834,1708864244149,-876.89,0.00024899,2]
[315124835,1708864244158,-876.89,0.00024899,2]
[315124836,1708864244168,-876.89,0.00024899,2]
[315124837,1708864244178,-876.89,0.00024899,2]
[315124838,1708864244188,-876.89,0.00024899,2]
[315124839,1708864244197,-876.89,0.00024899,2]
[315124840,1708864244207,-876.89,0.00024899,2]
[315124841,1708864244216,-500.0,0.00024899,2]
[315124842,1708864244225,-876.89,0.00024899,2]
[315124843,1708864244235,-500.0,0.00024899,2]
[315124844,1708864244245,-5081.27,0.00024899,2]
[315124845,1708864244254,-5081.27,0.00024899,2]
[315124846,1708864244264,-5081.27,0.00024899,2]
[315124847,1708864244273,-5081.27,0.00024899,2]
[315124848,1708864244283,-5081.27,0.00024899,2]
[315124849,1708864244293,-5081.27,0.00024899,2]
[315124850,1708864244303,-5081.27,0.00024899,2]
[315124851,1708864244312,-5081.27,0.00024899,2]